[Event "Titled Tuesday Blitz April 11 Late 2023"]
[White "Joubert, Dantelle"]
[Black "Sanchez, Robert"]
[WhiteFideId "14310813"]
[BlackFideId "2034360"]
[WhiteElo "1507"]
[BlackElo "1966"]
[Result "0-1"]
[Round "11"]
[TimeControl "180+2"]
[Date "2023.04.11"]
[WhiteClock "0:00:45"]
[BlackClock "0:01:07"]

1. d4 {[%clk 0:02:57]}  Nf6 {[%clk 0:02:56]} 2. c4 {[%clk 0:02:57]}  e6 {[%clk 0:02:56]} 3. Nc3 {[%clk 0:02:55]}  Bb4 {[%clk 0:02:56]} 4. e3 {[%clk 0:02:54]}  b6 {[%clk 0:02:56]} 5. Bd3 {[%clk 0:02:50]}  Bb7 {[%clk 0:02:55]} 6. f3 {[%clk 0:02:49]}  O-O {[%clk 0:02:54]} 7. Ne2 {[%clk 0:02:49]}  d5 {[%clk 0:02:54]} 8. cxd5 {[%clk 0:02:46]}  exd5 {[%clk 0:02:54]} 9. O-O {[%clk 0:02:46]}  c5 {[%clk 0:02:54]} 10. a3 {[%clk 0:02:41]}  Ba5 {[%clk 0:02:54]} 11. Qc2 {[%clk 0:02:29]}  c4 {[%clk 0:02:53]} 12. Bf5 {[%clk 0:02:27]}  a6 {[%clk 0:02:53]} 13. e4 {[%clk 0:02:13]}  dxe4 {[%clk 0:02:51]} 14. fxe4 {[%clk 0:02:12]}  h6 {[%clk 0:02:46]} 15. e5 {[%clk 0:02:08]}  Nd5 {[%clk 0:02:44]} 16. Ne4 {[%clk 0:02:03]}  b5 {[%clk 0:02:40]} 17. N2g3 {[%clk 0:01:51]}  Ne7 {[%clk 0:02:35]} 18. Be3 {[%clk 0:01:41]}  Nbc6 {[%clk 0:02:32]} 19. Rad1 {[%clk 0:01:37]}  Nxf5 {[%clk 0:02:27]} 20. Rxf5 {[%clk 0:01:34]}  Ne7 {[%clk 0:02:25]} 21. Rh5 {[%clk 0:01:21]}  Qd5 {[%clk 0:02:18]} 22. Qf2 {[%clk 0:01:14]}  Ng6 {[%clk 0:02:13]} 23. Rxh6 {[%clk 0:01:13]}  Rad8 {[%clk 0:01:51]} 24. Rf1 {[%clk 0:00:55]}  Bb6 {[%clk 0:01:22]} 25. Nd6 {[%clk 0:00:52]}  gxh6 {[%clk 0:01:15]} 26. Bxh6 {[%clk 0:00:47]}  Bxd4 {[%clk 0:01:10]} 27. Be3 {[%clk 0:00:45]}  Bxe3 {[%clk 0:01:10]} 28. Qxe3 {[%clk 0:00:45]}  Qxg2# {[%clk 0:01:07]} 0-1